[Event "Skilling Open CCT 2021"]
[Site "Online"]
[Date "2020.11.19"]
[Round "3.3"]
[White "Le, Quang Liem"]
[Black "Ding, Liren"]
[Result "1/2-1/2"]
[ECO "E15"]
[WhiteElo "2744"]
[BlackElo "2836"]
[Annotator "RC"]
[PlyCount "64"]
[EventDate "2020.11.20"]
[EventType "tourn"]
[EventCountry "NET"]
[Tiebreak "Koya+Number of black wins+Number of wins"]
[SourceTitle "playchess.com"]
[Source "ChessBase"]
[SourceQuality "1"]
[TimeControl "900+10"]

1. d4 {[%emt 0:00:00]} Nf6 {[%emt 0:00:00]} 2. c4 {[%emt 0:00:00]} e6 {[%emt 0:
00:00]} 3. Nf3 {[%emt 0:00:00]} b6 {[%emt 0:00:00]} 4. g3 {[%emt 0:00:00]} Ba6
{[%emt 0:00:00]} 5. b3 {[%emt 0:00:05]} Bb4+ {[%emt 0:00:00]} 6. Bd2 {[%emt 0:
00:02]} Be7 {[%emt 0:00:00]} 7. Bg2 {[%emt 0:00:01]} O-O {[%emt 0:00:01]} 8.
Nc3 {[%emt 0:00:09]} c6 {[%emt 0:00:20]} 9. e4 {[%emt 0:00:40]} d5 {[%emt 0:00:
03]} 10. exd5 {[%emt 0:00:04]} cxd5 {[%emt 0:00:02]} 11. Ne5 {[%emt 0:00:02]}
Bb7 {[%emt 0:00:07]} 12. O-O {[%emt 0:00:06]} Nc6 {[%emt 0:00:01]} 13. cxd5 {
[%emt 0:01:16]} Nxe5 {[%emt 0:01:41]} 14. d6 {[%emt 0:00:04]} Nc6 {[%emt 0:00:
27]} 15. dxe7 {[%emt 0:00:05]} Qxe7 {[%emt 0:00:01]} 16. Bg5 {[%emt 0:00:05]}
Rfd8 {[%emt 0:01:37]} 17. d5 {[%emt 0:00:53]} h6 {[%emt 0:02:52]} 18. Bxf6 {
[%emt 0:07:18]} Qxf6 {[%emt 0:01:02]} 19. dxc6 {[%emt 0:00:44]} Rxd1 {[%emt 0:
00:09]} 20. Rfxd1 {[%emt 0:00:00]} Bxc6 {[%emt 0:00:25]} 21. Bxc6 {[%emt 0:00:
00]} Rc8 {[%emt 0:00:01]} 22. Ne4 {[%emt 0:00:41]} Qe5 {[%emt 0:02:19]} 23.
Rac1 {[%emt 0:01:38]} Rxc6 {[%emt 0:00:13]} 24. Rxc6 {[%emt 0:00:00]} Qxe4 {
[%emt 0:00:01]} 25. Rc8+ {[%emt 0:00:02]} Kh7 {[%emt 0:00:01]} 26. Rc7 {
[%emt 0:00:00]} Qe2 {[%emt 0:00:41]} 27. Rdd7 {[%emt 0:00:04]} Qe1+ {[%emt 0:
00:15]} 28. Kg2 {[%emt 0:00:03]} Qe4+ {[%emt 0:00:00]} 29. Kf1 {[%emt 0:00:37]}
Qb1+ {[%emt 0:00:24]} 30. Kg2 {[%emt 0:00:12]} Qe4+ {[%emt 0:00:02]} 31. Kf1 {
[%emt 0:00:08]} Qb1+ {[%emt 0:00:01]} 32. Kg2 {[%emt 0:00:01]} Qe4+ {[%emt 0:
00:01]} 1/2-1/2

[Event "Skilling Open CCT 2021"]
[Site "Online"]
[Date "2020.11.19"]
[Round "3.4"]
[White "Vidit, Santosh Gujrathi"]
[Black "Duda, Jan-Krzysztof"]
[Result "1/2-1/2"]
[ECO "D85"]
[WhiteElo "2636"]
[BlackElo "2774"]
[Annotator "ChessBase"]
[PlyCount "157"]
[EventDate "2020.11.20"]
[EventType "tourn"]
[EventCountry "NET"]
[Tiebreak "Koya+Number of black wins+Number of wins"]
[SourceTitle "playchess.com"]
[Source "ChessBase"]
[SourceQuality "1"]
[TimeControl "900+10"]

1. d4 {[%emt 0:00:00]} Nf6 {[%emt 0:00:00]} 2. c4 {[%emt 0:00:00]} g6 {[%emt 0:
00:00]} 3. Nc3 {[%emt 0:00:35]} d5 {[%emt 0:00:00]} 4. cxd5 {[%emt 0:00:01]}
Nxd5 {[%emt 0:00:00]} 5. e4 {[%emt 0:00:03]} Nxc3 {[%emt 0:00:00]} 6. bxc3 {
[%emt 0:00:00]} Bg7 {[%emt 0:00:00]} 7. Be3 {[%emt 0:00:04]} c5 {[%emt 0:00:00]
} 8. Nf3 {[%emt 0:00:01]} Qa5 {[%emt 0:00:05]} 9. Qd2 {[%emt 0:00:01]} O-O {
[%emt 0:00:02]} 10. Rc1 {[%emt 0:00:07]} Rd8 {[%emt 0:00:06]} 11. h4 {[%emt 0:
00:05]} cxd4 {[%emt 0:00:03]} 12. cxd4 {[%emt 0:00:01]} Qxd2+ {[%emt 0:00:00]}
13. Bxd2 {[%emt 0:00:01]} Nd7 {[%emt 0:00:02]} 14. Be3 {[%emt 0:00:50]} Nb6 {
[%emt 0:00:06]} 15. Bb5 {[%emt 0:01:03]} f5 {[%emt 0:01:34]} 16. Bd3 {[%emt 0:
01:10]} Be6 {[%emt 0:02:29]} 17. h5 {[%emt 0:03:24]} Rac8 {[%emt 0:02:02]} 18.
Rxc8 {[%emt 0:00:10]} Rxc8 {[%emt 0:00:00]} 19. h6 {[%emt 0:01:32]} fxe4 {
[%emt 0:00:44]} 20. Bxe4 {[%emt 0:00:06]} Bf6 {[%emt 0:00:02]} 21. Bxb7 {
[%emt 0:00:37]} Rc7 {[%emt 0:00:49]} 22. Ba6 {[%emt 0:01:33]} Bxa2 {[%emt 0:00:
22]} 23. O-O {[%emt 0:00:38]} Nd5 {[%emt 0:02:09]} 24. Bd2 {[%emt 0:00:04]} Bc4
{[%emt 0:00:16]} 25. Ra1 {[%emt 0:00:04]} Bxa6 {[%emt 0:00:33]} 26. Rxa6 {
[%emt 0:00:00]} Kf7 {[%emt 0:00:00]} 27. Kf1 {[%emt 0:00:32]} Rb7 {[%emt 0:00:
03]} 28. Ke2 {[%emt 0:00:29]} Nc7 {[%emt 0:00:06]} 29. Ra5 {[%emt 0:00:14]} Nb5
{[%emt 0:00:40]} 30. Be3 {[%emt 0:00:18]} Rb6 {[%emt 0:02:35]} 31. d5 {[%emt 0:
00:44]} Nc3+ {[%emt 0:01:12]} 32. Kd3 {[%emt 0:00:03]} Rb5 {[%emt 0:00:03]} 33.
Rxa7 {[%emt 0:00:38]} Rxd5+ {[%emt 0:00:27]} 34. Kc4 {[%emt 0:00:05]} Rd8 {
[%emt 0:00:55]} 35. Ng5+ {[%emt 0:01:44]} Bxg5 {[%emt 0:00:03]} 36. Bxg5 {
[%emt 0:00:00]} Nd5 {[%emt 0:00:07]} 37. Kd4 {[%emt 0:01:31]} Ke6 {[%emt 0:00:
13]} 38. Ke4 {[%emt 0:00:31]} Rb8 {[%emt 0:00:47]} 39. Ra6+ {[%emt 0:00:12]}
Kf7 {[%emt 0:00:07]} 40. f4 {[%emt 0:00:27]} Nc3+ {[%emt 0:00:17]} 41. Kd3 {
[%emt 0:00:10]} Nb5 {[%emt 0:00:09]} 42. g4 {[%emt 0:00:21]} Nd6 {[%emt 0:01:
18]} 43. Ra7 {[%emt 0:00:06]} Rb3+ {[%emt 0:00:01]} 44. Ke2 {[%emt 0:00:26]}
Rb7 {[%emt 0:00:01]} 45. Rxb7 {[%emt 0:00:24]} Nxb7 {[%emt 0:00:00]} 46. Ke3 {
[%emt 0:00:24]} Nd6 {[%emt 0:00:19]} 47. Kf3 {[%emt 0:00:48]} Ke6 {[%emt 0:00:
06]} 48. Bh4 {[%emt 0:00:05]} Kd7 {[%emt 0:00:49]} 49. Be1 {[%emt 0:00:22]} Nf7
{[%emt 0:00:03]} 50. g5 {[%emt 0:00:17]} Ke6 {[%emt 0:00:09]} 51. Bb4 {[%emt 0:
00:02]} Nd6 {[%emt 0:00:08]} 52. Ba3 {[%emt 0:00:13]} Nf5 {[%emt 0:00:31]} 53.
Ke4 {[%emt 0:00:05]} Kd7 {[%emt 0:00:42]} 54. Ke5 {[%emt 0:00:07]} Ng3 {
[%emt 0:00:09]} 55. Bb4 {[%emt 0:00:05]} Ke8 {[%emt 0:00:17]} 56. Ke6 {[%emt 0:
00:12]} Ne2 {[%emt 0:00:10]} 57. Ke5 {[%emt 0:00:06]} Ng3 {[%emt 0:00:11]} 58.
Ke6 {[%emt 0:00:04]} Ne2 {[%emt 0:00:03]} 59. Ke5 {[%emt 0:00:03]} Kf7 {
[%emt 0:00:05]} 60. f5 {[%emt 0:00:36]} gxf5 {[%emt 0:00:00]} 61. Kxf5 {
[%emt 0:00:01]} Nd4+ {[%emt 0:00:03]} 62. Ke4 {[%emt 0:00:03]} Ne6 {[%emt 0:00:
21]} 63. Kf5 {[%emt 0:00:07]} Nf8 {[%emt 0:00:02]} 64. Ke5 {[%emt 0:00:24]}
Nd7+ {[%emt 0:00:20]} 65. Kf4 {[%emt 0:00:23]} e6 {[%emt 0:00:05]} 66. Ke4 {
[%emt 0:00:06]} Kg6 {[%emt 0:00:01]} 67. Be7 {[%emt 0:00:00]} Kf7 {[%emt 0:00:
21]} 68. Bd8 {[%emt 0:00:01]} Nb8 {[%emt 0:00:02]} 69. Bc7 {[%emt 0:00:12]} Nc6
{[%emt 0:00:02]} 70. Bf4 {[%emt 0:00:03]} Kg6 {[%emt 0:00:06]} 71. Bc1 {
[%emt 0:00:02]} Ne7 {[%emt 0:00:14]} 72. Ke5 {[%emt 0:00:03]} Kf7 {[%emt 0:00:
01]} 73. Bd2 {[%emt 0:00:06]} Nc6+ {[%emt 0:00:02]} 74. Ke4 {[%emt 0:00:05]}
Nb8 {[%emt 0:00:09]} 75. Ke5 {[%emt 0:00:04]} Nd7+ {[%emt 0:00:02]} 76. Kd6 {
[%emt 0:00:03]} Nf8 {[%emt 0:00:01]} 77. Bc1 {[%emt 0:00:13]} Ng6 {[%emt 0:00:
02]} 78. Bd2 {[%emt 0:00:04]} Nh4 {[%emt 0:00:59]} 79. Bc1 {[%emt 0:00:04]}
1/2-1/2